[Event "BL 2024-25"]
[Site "Austria"]
[Date "2024.10.10"]
[Round "2.17"]
[White "Bures, Jaroslav"]
[Black "Horvath, Maria"]
[Result "1-0"]
[ECO "C06"]
[WhiteElo "2407"]
[BlackElo "1893"]
[Annotator "RC"]
[PlyCount "85"]
[EventDate "2024.08.28"]
[EventType "team-tourn"]
[EventCountry "AUT"]
[SourceTitle "playchess.com"]
[Source "ChessBase"]
[SourceQuality "1"]
[WhiteTeam "Mistelbach"]
[BlackTeam "Pamhagen"]
[TimeControl "40/5400+30:1800+30"]

1. e4 {[%emt 0:00:19]} e6 {[%emt 0:00:14]} 2. d4 {[%emt 0:00:07]} d5 {[%emt 0:00:03]} 3. Nd2 {[%emt 0:00:09]} Nf6 {[%emt 0:01:09]} 4. e5 {[%emt 0:00:14]} Nfd7 {[%emt 0:00:04]} 5. c3 {[%emt 0:00:16]} c5 {[%emt 0:00:08]} 6. Bd3 {[%emt 0:00:19]} Nc6 {[%emt 0:01:01]} 7. Ne2 {[%emt 0:00:19]} cxd4 {[%emt 0:01:12]} 8. cxd4 {[%emt 0:00:03]} Qb6 {[%emt 0:01:44]} 9. Nf3 {[%emt 0:00:52]} Bb4+ {[%emt 0:04:05]} 10. Kf1 {[%emt 0:01:52]} a5 {[%emt 0:03:15]} 11. h4 {[%emt 0:01:39]} f6 {[%emt 0:07:31]} 12. Nf4 {[%emt 0:01:17]} fxe5 {[%emt 0:25:26]} 13. dxe5 {[%emt 0:00:33]} Nf8 {[%emt 0:19:53]} 14. Nh5 {[%emt 0:11:51]} Rg8 {[%emt 0:11:08]} 15. Rh3 {[%emt 0:08:24]} Bd7 {[%emt 0:03:36]} 16. Rg3 {[%emt 0:02:51]} O-O-O {[%emt 0:04:44]} 17. Be3 {[%emt 0:04:36]} Bc5 {[%emt 0:02:59]} 18. Bxc5 {[%emt 0:01:22]} Qxc5 {[%emt 0:00:01]} 19. Nf6 {[%emt 0:00:30]} gxf6 {[%emt 0:03:02]} 20. Rxg8 {[%emt 0:01:09]} Kb8 {[%emt 0:00:59]} 21. exf6 {[%emt 0:09:41]} e5 {[%emt 0:00:12]} 22. Rg5 {[%emt 0:07:35]} Qd6 {[%emt 0:01:41]} 23. Rc1 {[%emt 0:02:35]} h6 {[%emt 0:01:39]} 24. Rxc6 {[%emt 0:00:13]} Bxc6 {[%emt 0:00:41]} 25. Rxe5 {[%emt 0:00:04]} Qxf6 {[%emt 0:00:13]} 26. Qe2 {[%emt 0:00:39]} d4 {[%emt 0:01:41]} 27. Rxa5 {[%emt 0:01:46]} Bxf3 {[%emt 0:02:21]} 28. gxf3 {[%emt 0:00:02]} Nd7 {[%emt 0:01:20]} 29. Qe4 {[%emt 0:00:59]} Rc8 {[%emt 0:00:39]} 30. b4 {[%emt 0:01:58]} Rc1+ {[%emt 0:01:29]} 31. Kg2 {[%emt 0:00:39]} Qg7+ {[%emt 0:00:42]} 32. Qg4 {[%emt 0:00:54]} Qxg4+ {[%emt 0:00:55]} 33. fxg4 {[%emt 0:00:01]} Rd1 {[%emt 0:00:06]} 34. Bf5 {[%emt 0:00:05]} Kc7 {[%emt 0:00:24]} 35. g5 {[%emt 0:00:17]} hxg5 {[%emt 0:00:07]} 36. hxg5 {[%emt 0:00:12]} Kd6 {[%emt 0:00:49]} 37. Bxd7 {[%emt 0:02:41]} Kxd7 {[%emt 0:00:24]} 38. g6 {[%emt 0:00:01]} Ke7 {[%emt 0:00:08]} 39. Rf5 {[%emt 0:00:05]} d3 {[%emt 0:00:19]} 40. g7 {[%emt 0:00:12]} d2 {[%emt 0:00:06]} 41. g8=Q {[%emt 0:30:15]} Rg1+ {[%emt 0:30:08]} 42. Kxg1 {[%emt 0:00:15]} d1=Q+ {[%emt 0:00:05]} 43. Kg2 {[%emt 0:00:07]} 1-0

[Event "BL 2024-25"]
[Site "Austria"]
[Date "2024.10.10"]
[Round "2.19"]
[White "Ragger, Markus"]
[Black "Gupta, Abhijeet"]
[Result "1/2-1/2"]
[ECO "B52"]
[WhiteElo "2584"]
[BlackElo "2573"]
[Annotator "RC"]
[PlyCount "69"]
[EventDate "2024.08.28"]
[EventType "team-tourn"]
[EventCountry "AUT"]
[SourceTitle "playchess.com"]
[Source "ChessBase"]
[SourceQuality "1"]
[WhiteTeam "Maria Saal"]
[BlackTeam "Wien-St Veit"]
[TimeControl "40/5400+30:1800+30"]

1. e4 {[%emt 0:00:03]} c5 {[%emt 0:00:17]} 2. Nf3 {[%emt 0:00:03]} d6 {[%emt 0:00:14]} 3. Bb5+ {[%emt 0:00:02]} Bd7 {[%emt 0:00:15]} 4. Bxd7+ {[%emt 0:00:06]} Nxd7 {[%emt 0:00:04]} 5. c4 {[%emt 0:00:08]} Ngf6 {[%emt 0:05:44]} 6. Nc3 {[%emt 0:00:30]} Ne5 {[%emt 0:00:11]} 7. O-O {[%emt 0:03:04]} e6 {[%emt 0:03:39]} 8. d3 {[%emt 0:00:50]} Be7 {[%emt 0:00:24]} 9. Ne1 {[%emt 0:00:05]} Nc6 {[%emt 0:00:47]} 10. f4 {[%emt 0:00:17]} O-O {[%emt 0:00:23]} 11. g4 {[%emt 0:00:11]} Nd7 {[%emt 0:01:15]} 12. Nf3 {[%emt 0:01:00]} a6 {[%emt 0:02:31]} 13. a4 {[%emt 0:01:51]} Nb4 {[%emt 0:04:48]} 14. Qe2 {[%emt 0:09:14]} Re8 {[%emt 0:02:40]} 15. Bd2 {[%emt 0:14:02]} Bf8 {[%emt 0:00:56]} 16. Rad1 {[%emt 0:09:20]} Nb8 {[%emt 0:12:48]} 17. Bc1 {[%emt 0:07:48]} N8c6 {[%emt 0:00:43]} 18. Qg2 {[%emt 0:00:57]} d5 {[%emt 0:02:43]} 19. g5 {[%emt 0:03:49]} Qd7 {[%emt 0:05:21]} 20. h4 {[%emt 0:06:51]} Rad8 {[%emt 0:06:58]} 21. h5 {[%emt 0:00:40]} dxc4 {[%emt 0:00:36]} 22. dxc4 {[%emt 0:00:08]} Qc7 {[%emt 0:00:05]} 23. g6 {[%emt 0:11:24]} h6 {[%emt 0:01:05]} 24. e5 {[%emt 0:04:11]} fxg6 {[%emt 0:09:03]} 25. Qxg6 {[%emt 0:02:42]} Qf7 {[%emt 0:00:55]} 26. Qg4 {[%emt 0:00:02]} Be7 {[%emt 0:13:33]} 27. Ne4 {[%emt 0:04:16]} Rxd1 {[%emt 0:03:10]} 28. Rxd1 {[%emt 0:00:02]} Rd8 {[%emt 0:00:14]} 29. Rxd8+ {[%emt 0:10:35]} Nxd8 {[%emt 0:00:05]} 30. Be3 {[%emt 0:01:04]} Nd3 {[%emt 0:01:01]} 31. b3 {[%emt 0:02:12]} Nc6 {[%emt 0:02:26]} 32. Nf2 {[%emt 0:03:48]} Ndb4 {[%emt 0:02:48]} 33. Ne4 {[%emt 0:00:23]} Nd3 {[%emt 0:00:19]} 34. Nf2 {[%emt 0:00:02]} Ndb4 {[%emt 0:00:19]} 35. Ne4 {[%emt 0:00:11]} 1/2-1/2

[Event "BL 2024-25"]
[Site "Austria"]
[Date "2024.10.10"]
[Round "2.20"]
[White "Solodovnichenko, Yuri"]
[Black "Costa, Leonardo"]
[Result "0-1"]
[ECO "C48"]
[WhiteElo "2497"]
[BlackElo "2472"]
[Annotator "RC"]
[PlyCount "120"]
[EventDate "2024.08.28"]
[EventType "team-tourn"]
[EventCountry "AUT"]
[SourceTitle "playchess.com"]
[Source "ChessBase"]
[SourceQuality "1"]
[WhiteTeam "Wien-St Veit"]
[BlackTeam "Maria Saal"]
[TimeControl "40/5400+30:1800+30"]

1. e4 {[%emt 0:00:07]} e5 {[%emt 0:00:04]} 2. Nf3 {[%emt 0:00:03]} Nc6 {[%emt 0:00:04]} 3. Nc3 {[%emt 0:00:30]} Nf6 {[%emt 0:00:05]} 4. Bb5 {[%emt 0:00:05]} Bc5 {[%emt 0:00:07]} 5. O-O {[%emt 0:00:56]} O-O {[%emt 0:00:03]} 6. Bxc6 {[%emt 0:00:28]} dxc6 {[%emt 0:00:03]} 7. d3 {[%emt 0:00:10]} Nd7 {[%emt 0:00:11]} 8. Be3 {[%emt 0:02:03]} Bd6 {[%emt 0:08:22]} 9. Nd2 {[%emt 0:00:27]} Nc5 {[%emt 0:00:14]} 10. f4 {[%emt 0:02:42]} exf4 {[%emt 0:02:37]} 11. Bxf4 {[%emt 0:00:13]} Bxf4 {[%emt 0:10:33]} 12. Rxf4 {[%emt 0:00:34]} Ne6 {[%emt 0:00:12]} 13. Rf2 {[%emt 0:00:29]} Nd4 {[%emt 0:00:25]} 14. Nb3 {[%emt 0:05:17]} a5 {[%emt 0:03:22]} 15. Qd2 {[%emt 0:05:48]} a4 {[%emt 0:03:55]} 16. Nxd4 {[%emt 0:00:06]} Qxd4 {[%emt 0:00:03]} 17. Raf1 {[%emt 0:00:08]} Be6 {[%emt 0:02:08]} 18. Kh1 {[%emt 0:02:27]} Rfd8 {[%emt 0:19:46]} 19. b3 {[%emt 0:08:01]} b5 {[%emt 0:01:40]} 20. Qe1 {[%emt 0:01:10]} a3 {[%emt 0:01:58]} 21. Ne2 {[%emt 0:03:01]} Qe5 {[%emt 0:17:24]} 22. Nf4 {[%emt 0:06:41]} c5 {[%emt 0:00:13]} 23. h3 {[%emt 0:03:35]} h6 {[%emt 0:04:16]} 24. Qe2 {[%emt 0:30:27]} Rd7 {[%emt 0:04:52]} 25. Nxe6 {[%emt 0:05:32]} fxe6 {[%emt 0:00:04]} 26. Qg4 {[%emt 0:00:04]} Rdd8 {[%emt 0:01:53]} 27. Qf4 {[%emt 0:04:56]} Qxf4 {[%emt 0:00:54]} 28. Rxf4 {[%emt 0:00:04]} c4 {[%emt 0:00:10]} 29. dxc4 {[%emt 0:02:29]} bxc4 {[%emt 0:00:04]} 30. bxc4 {[%emt 0:03:20]} Rd2 {[%emt 0:07:34]} 31. R1f2 {[%emt 0:02:10]} Rxf2 {[%emt 0:00:45]} 32. Rxf2 {[%emt 0:00:04]} Ra4 {[%emt 0:00:02]} 33. Rf3 {[%emt 0:04:07]} Rxc4 {[%emt 0:00:04]} 34. Rxa3 {[%emt 0:00:04]} Rxc2 {[%emt 0:00:33]} 35. Kh2 {[%emt 0:00:05]} Kf7 {[%emt 0:00:08]} 36. Kg3 {[%emt 0:09:10]} Kf6 {[%emt 0:00:35]} 37. Kf3 {[%emt 0:00:53]} Ke5 {[%emt 0:01:19]} 38. g3 {[%emt 0:00:05]} c5 {[%emt 0:02:47]} 39. h4 {[%emt 0:00:48]} Kd4 {[%emt 0:06:54]} 40. Ra7 {[%emt 0:00:31]} Rc3+ {[%emt 0:03:27]} 41. Kf4 {[%emt 0:01:57]} e5+ {[%emt 0:07:38]} 42. Kf5 {[%emt 0:00:14]} Rf3+ {[%emt 0:03:33]} 43. Kg4 {[%emt 0:00:11]} Rf6 {[%emt 0:05:53]} 44. Rxg7 {[%emt 0:00:15]} c4 {[%emt 0:00:04]} 45. Rc7 {[%emt 0:01:27]} c3 {[%emt 0:00:06]} 46. Kh5 {[%emt 0:01:03]} Kd3 {[%emt 0:02:05]} 47. g4 {[%emt 0:18:33]} c2 {[%emt 0:00:03]} 48. Rd7+ {[%emt 0:00:40]} Kxe4 {[%emt 0:00:04]} 49. Rc7 {[%emt 0:00:02]} Kd3 {[%emt 0:00:04]} 50. Rd7+ {[%emt 0:00:03]} Kc3 {[%emt 0:00:03]} 51. Rc7+ {[%emt 0:00:12]} Kb2 {[%emt 0:00:03]} 52. Rb7+ {[%emt 0:00:09]} Kxa2 {[%emt 0:00:03]} 53. Rc7 {[%emt 0:00:04]} Kb2 {[%emt 0:04:33]} 54. Rb7+ {[%emt 0:00:03]} Kc1 {[%emt 0:02:02]} 55. g5 {[%emt 0:00:43]} hxg5 {[%emt 0:00:04]} 56. hxg5 {[%emt 0:00:04]} Rc6 {[%emt 0:01:08]} 57. g6 {[%emt 0:00:27]} Kd1 {[%emt 0:00:06]} 58. g7 {[%emt 0:01:20]} c1=Q {[%emt 0:00:07]} 59. Rd7+ {[%emt 0:00:04]} Ke2 {[%emt 0:00:04]} 60. g8=Q {[%emt 0:00:04]} Rh6+ {[%emt 0:00:04]} 0-1

[Event "BL 2024-25"]
[Site "Austria"]
[Date "2024.10.10"]
[Round "2.21"]
[White "Naumann, Alexander"]
[Black "Koellner, Ruben Gideon"]
[Result "1/2-1/2"]
[ECO "A13"]
[WhiteElo "2487"]
[BlackElo "2480"]
[Annotator "RC"]
[PlyCount "61"]
[EventDate "2024.08.28"]
[EventType "team-tourn"]
[EventCountry "AUT"]
[SourceTitle "playchess.com"]
[Source "ChessBase"]
[SourceQuality "1"]
[WhiteTeam "Maria Saal"]
[BlackTeam "Wien-St Veit"]
[TimeControl "40/5400+30:1800+30"]

1. c4 e6 2. g3 d5 3. Bg2 Nf6 4. Nf3 dxc4 5. Qa4+ Bd7 6. Qxc4 c5 7. Ne5 Qc8 8. Qd3 Nc6 9. Nxd7 Nxd7 10. b3 Be7 11. Bb2 O-O 12. Nc3 Rd8 13. Rd1 Nf6 14. Qb1 Qd7 15. O-O Rac8 16. d3 b6 17. Rd2 Nd5 18. e3 Nxc3 19. Bxc3 Qe8 20. Rfd1 Bf8 21. Qa1 Rd6 22. d4 cxd4 23. Bxd4 Nxd4 24. Rxd4 Rcd8 25. Rxd6 Rxd6 26. Rxd6 Bxd6 27. Qd4 Qe7 28. Bf3 g6 29. Kg2 Qc7 30. Qd3 Kg7 31. h4 1/2-1/2

[Event "BL 2024-25"]
[Site "Austria"]
[Date "2024.10.10"]
[Round "2.22"]
[White "Antoniewski, Rafal"]
[Black "Halvax, Georg"]
[Result "1/2-1/2"]
[ECO "D36"]
[WhiteElo "2443"]
[BlackElo "2443"]
[Annotator "RC"]
[PlyCount "67"]
[EventDate "2024.08.28"]
[EventType "team-tourn"]
[EventCountry "AUT"]
[SourceTitle "playchess.com"]
[Source "ChessBase"]
[SourceQuality "1"]
[WhiteTeam "Wien-St Veit"]
[BlackTeam "Maria Saal"]
[TimeControl "40/5400+30:1800+30"]

1. c4 {[%emt 0:00:08]} e6 {[%emt 0:00:26]} 2. Nc3 {[%emt 0:00:13]} d5 {[%emt 0:00:29]} 3. d4 {[%emt 0:00:36]} Nf6 {[%emt 0:00:36]} 4. cxd5 {[%emt 0:00:25]} exd5 {[%emt 0:00:11]} 5. Bg5 {[%emt 0:00:15]} Be7 {[%emt 0:00:32]} 6. e3 {[%emt 0:02:00]} c6 {[%emt 0:00:13]} 7. Bd3 {[%emt 0:00:11]} Nbd7 {[%emt 0:00:11]} 8. Qc2 {[%emt 0:03:29]} Nf8 {[%emt 0:00:47]} 9. Nf3 {[%emt 0:01:04]} Ne6 {[%emt 0:01:56]} 10. Bh4 {[%emt 0:00:12]} g6 {[%emt 0:01:14]} 11. O-O {[%emt 0:02:03]} O-O {[%emt 0:02:24]} 12. Rab1 {[%emt 0:01:31]} Ng7 {[%emt 0:01:41]} 13. b4 {[%emt 0:01:07]} a6 {[%emt 0:00:15]} 14. a4 {[%emt 0:01:59]} Bf5 {[%emt 0:02:06]} 15. b5 {[%emt 0:01:52]} Bxd3 {[%emt 0:03:33]} 16. Qxd3 {[%emt 0:00:07]} axb5 {[%emt 0:00:07]} 17. axb5 {[%emt 0:00:05]} Nf5 {[%emt 0:01:40]} 18. Bxf6 {[%emt 0:01:42]} Bxf6 {[%emt 0:01:15]} 19. bxc6 {[%emt 0:00:15]} bxc6 {[%emt 0:00:13]} 20. Rfc1 {[%emt 0:00:37]} Ra3 {[%emt 0:09:53]} 21. Qc2 {[%emt 0:05:40]} Qa5 {[%emt 0:08:42]} 22. Rb3 {[%emt 0:23:18]} Rxb3 {[%emt 0:05:19]} 23. Qxb3 {[%emt 0:00:05]} Nd6 {[%emt 0:00:42]} 24. Nd2 {[%emt 0:16:48]} Ra8 {[%emt 0:09:28]} 25. g3 {[%emt 0:00:29]} Kg7 {[%emt 0:02:13]} 26. Qc2 {[%emt 0:00:38]} Qa6 {[%emt 0:07:33]} 27. Nb3 {[%emt 0:13:43]} Nc4 {[%emt 0:26:03]} 28. Ra1 {[%emt 0:15:15]} Qb7 {[%emt 0:01:21]} 29. Rxa8 {[%emt 0:00:05]} Qxa8 {[%emt 0:00:08]} 30. Ne2 {[%emt 0:01:47]} Qa4 {[%emt 0:01:03]} 31. Nc3 {[%emt 0:01:26]} Qb4 {[%emt 0:01:47]} 32. Nc1 {[%emt 0:00:29]} Qa3 {[%emt 0:04:06]} 33. Nd3 {[%emt 0:00:36]} Be7 {[%emt 0:01:02]} 34. Ne2 {[%emt 0:03:04]} 1/2-1/2

[Event "BL 2024-25"]
[Site "Austria"]
[Date "2024.10.10"]
[Round "2.23"]
[White "Bauer, Sebastian"]
[Black "Kuegel, Tobias"]
[Result "1/2-1/2"]
[ECO "B27"]
[WhiteElo "2334"]
[BlackElo "2428"]
[Annotator "RC"]
[PlyCount "75"]
[EventDate "2024.08.28"]
[EventType "team-tourn"]
[EventCountry "AUT"]
[SourceTitle "playchess.com"]
[Source "ChessBase"]
[SourceQuality "1"]
[WhiteTeam "Maria Saal"]
[BlackTeam "Wien-St Veit"]
[TimeControl "40/5400+30:1800+30"]

1. e4 {[%emt 0:00:03]} c5 {[%emt 0:00:02]} 2. Nf3 {[%emt 0:00:10]} g6 {[%emt 0:00:07]} 3. d4 {[%emt 0:08:10]} cxd4 {[%emt 0:01:14]} 4. Qxd4 {[%emt 0:00:08]} Nf6 {[%emt 0:01:20]} 5. Nc3 {[%emt 0:00:40]} Nc6 {[%emt 0:01:28]} 6. Qa4 {[%emt 0:01:12]} d6 {[%emt 0:02:08]} 7. e5 {[%emt 0:00:41]} dxe5 {[%emt 0:00:36]} 8. Nxe5 {[%emt 0:00:07]} Bg7 {[%emt 0:00:08]} 9. Bb5 {[%emt 0:01:31]} O-O {[%emt 0:02:14]} 10. Nxc6 {[%emt 0:00:18]} bxc6 {[%emt 0:00:07]} 11. Bxc6 {[%emt 0:00:05]} Rb8 {[%emt 0:00:23]} 12. O-O {[%emt 0:00:14]} Qc7 {[%emt 0:02:18]} 13. Re1 {[%emt 0:21:06]} Rb6 {[%emt 0:07:48]} 14. Bf3 {[%emt 0:03:40]} Bb7 {[%emt 0:01:22]} 15. Bf4 {[%emt 0:17:17]} Qc8 {[%emt 0:02:32]} 16. Bxb7 {[%emt 0:02:17]} Qxb7 {[%emt 0:00:23]} 17. Be5 {[%emt 0:00:27]} Rxb2 {[%emt 0:17:53]} 18. Rab1 {[%emt 0:03:44]} Rxb1 {[%emt 0:08:56]} 19. Rxb1 {[%emt 0:00:21]} Qd7 {[%emt 0:00:54]} 20. Qxd7 {[%emt 0:05:25]} Nxd7 {[%emt 0:00:21]} 21. Bxg7 {[%emt 0:00:07]} Kxg7 {[%emt 0:00:11]} 22. Rb7 {[%emt 0:02:04]} Rc8 {[%emt 0:03:41]} 23. Rxd7 {[%emt 0:00:28]} Rxc3 {[%emt 0:00:36]} 24. Rxa7 {[%emt 0:00:53]} e5 {[%emt 0:09:53]} 25. g4 {[%emt 0:03:28]} h6 {[%emt 0:02:48]} 26. Kg2 {[%emt 0:01:51]} e4 {[%emt 0:01:40]} 27. Re7 {[%emt 0:01:51]} Rxc2 {[%emt 0:00:15]} 28. Rxe4 {[%emt 0:00:10]} Rxa2 {[%emt 0:00:06]} 29. h3 {[%emt 0:00:13]} Ra5 {[%emt 0:00:19]} 30. Rb4 {[%emt 0:00:35]} h5 {[%emt 0:00:10]} 31. Kg3 {[%emt 0:00:43]} hxg4 {[%emt 0:00:14]} 32. hxg4 {[%emt 0:00:03]} g5 {[%emt 0:00:20]} 33. Rb6 {[%emt 0:00:55]} f5 {[%emt 0:00:42]} 34. gxf5 {[%emt 0:00:09]} Rxf5 {[%emt 0:00:07]} 35. Kg4 {[%emt 0:00:12]} Rf6 {[%emt 0:00:19]} 36. Rxf6 {[%emt 0:00:10]} Kxf6 {[%emt 0:00:05]} 37. f4 {[%emt 0:00:17]} gxf4 {[%emt 0:00:09]} 38. Kxf4 {[%emt 0:00:40]} 1/2-1/2

[Event "BL 2024-25"]
[Site "Austria"]
[Date "2024.10.10"]
[Round "2.24"]
[White "Kulon, Klaudia"]
[Black "Hartl, Daniel"]
[Result "1/2-1/2"]
[ECO "C58"]
[WhiteElo "2395"]
[BlackElo "2248"]
[Annotator "RC"]
[PlyCount "97"]
[EventDate "2024.08.28"]
[EventType "team-tourn"]
[EventCountry "AUT"]
[SourceTitle "playchess.com"]
[Source "ChessBase"]
[SourceQuality "1"]
[WhiteTeam "Wien-St Veit"]
[BlackTeam "Maria Saal"]
[TimeControl "40/5400+30:1800+30"]

1. e4 {[%emt 0:00:02]} e5 {[%emt 0:00:06]} 2. Nf3 {[%emt 0:00:05]} Nc6 {[%emt 0:00:04]} 3. Bc4 {[%emt 0:00:06]} Nf6 {[%emt 0:00:08]} 4. Ng5 {[%emt 0:00:07]} d5 {[%emt 0:00:09]} 5. exd5 {[%emt 0:00:09]} Na5 {[%emt 0:00:11]} 6. Bb5+ {[%emt 0:00:12]} c6 {[%emt 0:00:08]} 7. dxc6 {[%emt 0:00:09]} bxc6 {[%emt 0:00:07]} 8. Qf3 {[%emt 0:00:14]} Rb8 {[%emt 0:03:59]} 9. Bd3 {[%emt 0:00:05]} Be7 {[%emt 0:07:02]} 10. Nc3 {[%emt 0:02:50]} O-O {[%emt 0:04:02]} 11. Bf5 {[%emt 0:00:30]} h6 {[%emt 0:05:26]} 12. Nge4 {[%emt 0:01:14]} Nxe4 {[%emt 0:07:43]} 13. Nxe4 {[%emt 0:01:46]} Nc4 {[%emt 0:14:10]} 14. Bxc8 {[%emt 0:17:19]} Qxc8 {[%emt 0:02:07]} 15. b3 {[%emt 0:00:39]} Na3 {[%emt 0:02:09]} 16. Bxa3 {[%emt 0:00:40]} Bxa3 {[%emt 0:00:07]} 17. O-O {[%emt 0:00:27]} f5 {[%emt 0:05:01]} 18. Nc3 {[%emt 0:02:56]} Qc7 {[%emt 0:06:29]} 19. Rad1 {[%emt 0:03:07]} Bd6 {[%emt 0:03:35]} 20. d3 {[%emt 0:02:38]} Rb4 {[%emt 0:02:38]} 21. Ne2 {[%emt 0:02:29]} Rh4 {[%emt 0:09:41]} 22. g3 {[%emt 0:02:33]} Rg4 {[%emt 0:00:39]} 23. c4 {[%emt 0:05:13]} Rg6 {[%emt 0:01:24]} 24. Kh1 {[%emt 0:06:02]} Qd7 {[%emt 0:05:08]} 25. d4 {[%emt 0:08:45]} e4 {[%emt 0:00:20]} 26. Qe3 {[%emt 0:00:26]} Rg4 {[%emt 0:04:28]} 27. f4 {[%emt 0:03:03]} exf3 {[%emt 0:01:13]} 28. Qxf3 {[%emt 0:00:10]} f4 {[%emt 0:01:38]} 29. gxf4 {[%emt 0:04:32]} Bxf4 {[%emt 0:00:38]} 30. d5 {[%emt 0:02:30]} Rh4 {[%emt 0:04:34]} 31. Nxf4 {[%emt 0:08:20]} Rhxf4 {[%emt 0:00:09]} 32. Qxf4 {[%emt 0:00:31]} Rxf4 {[%emt 0:00:07]} 33. Rxf4 {[%emt 0:00:01]} Qd6 {[%emt 0:04:23]} 34. Rf3 {[%emt 0:02:21]} g5 {[%emt 0:02:02]} 35. Kg2 {[%emt 0:03:14]} Qe7 {[%emt 0:00:40]} 36. Kf2 {[%emt 0:03:07]} cxd5 {[%emt 0:02:04]} 37. cxd5 {[%emt 0:00:05]} Qe5 {[%emt 0:01:06]} 38. Kg1 {[%emt 0:01:36]} Qe2 {[%emt 0:00:51]} 39. Rfd3 {[%emt 0:02:09]} Qg4+ {[%emt 0:00:11]} 40. Kf1 {[%emt 0:01:33]} Qf4+ {[%emt 0:00:12]} 41. Ke1 {[%emt 0:30:30]} Qe5+ {[%emt 0:30:13]} 42. Kd2 {[%emt 0:01:11]} Qb2+ {[%emt 0:01:50]} 43. Ke3 {[%emt 0:01:10]} Qe5+ {[%emt 0:00:20]} 44. Kf3 {[%emt 0:01:45]} Qf4+ {[%emt 0:00:24]} 45. Kg2 {[%emt 0:00:04]} Qg4+ {[%emt 0:00:07]} 46. Kf1 {[%emt 0:00:47]} Qf4+ {[%emt 0:00:06]} 47. Ke1 {[%emt 0:00:03]} Qe5+ {[%emt 0:00:07]} 48. Kd2 {[%emt 0:00:08]} Qb2+ {[%emt 0:00:07]} 49. Ke3 {[%emt 0:00:31]} 1/2-1/2

[Event "BL 2024-25"]
[Site "Austria"]
[Date "2024.10.10"]
[Round "2.25"]
[White "Kozak, Adam"]
[Black "Nisipeanu, Liviu-Dieter"]
[Result "1/2-1/2"]
[ECO "E15"]
[WhiteElo "2600"]
[BlackElo "2584"]
[Annotator "RC"]
[PlyCount "48"]
[EventDate "2024.08.28"]
[EventType "team-tourn"]
[EventCountry "AUT"]
[SourceTitle "playchess.com"]
[Source "ChessBase"]
[SourceQuality "1"]
[WhiteTeam "Fuerstenfeld-Hartberg"]
[BlackTeam "Mayrhofen-Zell-Ziller"]
[TimeControl "40/5400+30:1800+30"]

1. d4 {[%emt 0:00:03]} Nf6 {[%emt 0:00:05]} 2. c4 {[%emt 0:00:07]} e6 {[%emt 0:00:03]} 3. Nf3 {[%emt 0:00:10]} b6 {[%emt 0:00:53]} 4. g3 {[%emt 0:00:15]} Bb4+ {[%emt 0:00:06]} 5. Bd2 {[%emt 0:01:26]} Bxd2+ {[%emt 0:00:08]} 6. Qxd2 {[%emt 0:01:08]} Ba6 {[%emt 0:00:08]} 7. Qc2 {[%emt 0:03:32]} c5 {[%emt 0:07:35]} 8. Bg2 {[%emt 0:04:11]} Nc6 {[%emt 0:02:33]} 9. dxc5 {[%emt 0:03:32]} bxc5 {[%emt 0:00:15]} 10. O-O {[%emt 0:00:06]} O-O {[%emt 0:00:18]} 11. Rd1 {[%emt 0:07:51]} Qe7 {[%emt 0:11:43]} 12. Nc3 {[%emt 0:07:37]} Rfd8 {[%emt 0:03:41]} 13. Qa4 {[%emt 0:10:29]} Bb7 {[%emt 0:00:08]} 14. Ne1 {[%emt 0:00:28]} d5 {[%emt 0:17:58]} 15. cxd5 {[%emt 0:13:13]} exd5 {[%emt 0:00:15]} 16. Nxd5 {[%emt 0:00:38]} Nxd5 {[%emt 0:00:06]} 17. Bxd5 {[%emt 0:02:04]} Nd4 {[%emt 0:00:04]} 18. Bxb7 {[%emt 0:00:28]} Qxb7 {[%emt 0:00:04]} 19. e3 {[%emt 0:05:39]} Ne2+ {[%emt 0:00:08]} 20. Kf1 {[%emt 0:00:11]} Nd4 {[%emt 0:00:02]} 21. Kg1 {[%emt 0:05:48]} Ne2+ {[%emt 0:00:08]} 22. Kf1 {[%emt 0:00:02]} Nd4 {[%emt 0:00:05]} 23. Kg1 {[%emt 0:01:47]} Ne2+ {[%emt 0:00:06]} 24. Kf1 {[%emt 0:00:06]} Nd4 {[%emt 0:00:02]} 1/2-1/2

[Event "BL 2024-25"]
[Site "Austria"]
[Date "2024.10.10"]
[Round "2.26"]
[White "Vogel, Roven"]
[Black "Berkes, Ferenc"]
[Result "1-0"]
[ECO "D45"]
[WhiteElo "2559"]
[BlackElo "2604"]
[Annotator "RC"]
[PlyCount "81"]
[EventDate "2024.08.28"]
[EventType "team-tourn"]
[EventCountry "AUT"]
[SourceTitle "playchess.com"]
[Source "ChessBase"]
[SourceQuality "1"]
[WhiteTeam "Mayrhofen-Zell-Ziller"]
[BlackTeam "Fuerstenfeld-Hartberg"]
[TimeControl "40/5400+30:1800+30"]

1. d4 {[%emt 0:00:05]} d5 {[%emt 0:00:08]} 2. c4 {[%emt 0:00:09]} c6 {[%emt 0:00:07]} 3. Nf3 {[%emt 0:00:08]} Nf6 {[%emt 0:00:09]} 4. Nc3 {[%emt 0:00:56]} a6 {[%emt 0:00:10]} 5. e3 {[%emt 0:00:21]} e6 {[%emt 0:00:12]} 6. h3 {[%emt 0:01:12]} Nbd7 {[%emt 0:01:57]} 7. Qc2 {[%emt 0:01:59]} h6 {[%emt 0:16:33]} 8. b3 {[%emt 0:04:15]} Bd6 {[%emt 0:01:54]} 9. Bb2 {[%emt 0:02:42]} e5 {[%emt 0:06:41]} 10. dxe5 {[%emt 0:09:33]} Nxe5 {[%emt 0:00:08]} 11. O-O-O {[%emt 0:00:26]} Qe7 {[%emt 0:03:22]} 12. Nxe5 {[%emt 0:04:36]} Bxe5 {[%emt 0:00:12]} 13. cxd5 {[%emt 0:01:49]} cxd5 {[%emt 0:00:41]} 14. Nxd5 {[%emt 0:00:27]} Nxd5 {[%emt 0:01:03]} 15. Rxd5 {[%emt 0:00:08]} Bxb2+ {[%emt 0:00:06]} 16. Kxb2 {[%emt 0:02:01]} O-O {[%emt 0:01:48]} 17. Bd3 {[%emt 0:05:20]} Be6 {[%emt 0:01:31]} 18. Rd4 {[%emt 0:01:03]} Rfd8 {[%emt 0:25:37]} 19. Rd1 {[%emt 0:04:23]} Rxd4 {[%emt 0:01:35]} 20. exd4 {[%emt 0:01:03]} a5 {[%emt 0:17:04]} 21. Bc4 {[%emt 0:16:45]} a4 {[%emt 0:00:07]} 22. Bxe6 {[%emt 0:01:03]} a3+ {[%emt 0:00:46]} 23. Kb1 {[%emt 0:00:22]} Qxe6 {[%emt 0:00:05]} 24. d5 {[%emt 0:01:05]} Qd6 {[%emt 0:00:09]} 25. Qe4 {[%emt 0:02:47]} Rd8 {[%emt 0:06:28]} 26. Rd3 {[%emt 0:06:09]} Qf6 {[%emt 0:01:47]} 27. Rd2 {[%emt 0:01:34]} Qd6 {[%emt 0:00:58]} 28. Kc2 {[%emt 0:01:48]} Qa6 {[%emt 0:03:34]} 29. Qd3 {[%emt 0:01:20]} Qf6 {[%emt 0:00:18]} 30. d6 {[%emt 0:01:40]} Qa1 {[%emt 0:00:31]} 31. Qc3 {[%emt 0:01:09]} Qe1 {[%emt 0:00:20]} 32. f3 {[%emt 0:02:50]} Qe8 {[%emt 0:04:09]} 33. Kd1 {[%emt 0:00:46]} Qb5 {[%emt 0:02:41]} 34. d7 {[%emt 0:00:46]} Qb6 {[%emt 0:00:52]} 35. b4 {[%emt 0:01:13]} Qg1+ {[%emt 0:01:46]} 36. Kc2 {[%emt 0:00:08]} Qb6 {[%emt 0:00:10]} 37. Kb3 {[%emt 0:06:55]} Qe6+ {[%emt 0:00:11]} 38. Kxa3 {[%emt 0:01:33]} Kh7 {[%emt 0:00:48]} 39. Qd3+ {[%emt 0:00:19]} g6 {[%emt 0:00:38]} 40. Kb2 {[%emt 0:00:29]} Qe5+ {[%emt 0:00:34]} 41. Qd4 {[%emt 0:30:43]} 1-0